bitfinex/quotes_BTCUSD_20250902
["timestamp","ask_amount","ask_price","bid_price","bid_amount"]
[1756791448952,0.70563979,110380.0,110370.0,0.003]
[1756791449623,0.18122508,110360.0,110350.0,0.44215357]
[1756791449834,0.18122508,110360.0,110350.0,0.37457357]
[1756791450467,0.18122508,110360.0,110350.0,0.22285357]
[1756791450699,0.18122508,110360.0,110350.0,0.37457357]
[1756791451143,0.18222508,110360.0,110350.0,0.22685357]
[1756791451274,0.18222508,110360.0,110350.0,0.37857357]
[1756791452298,0.001,110360.0,110350.0,0.37857357]
[1756791452955,0.001,110360.0,110350.0,0.38157357]
[1756791453165,0.18222508,110360.0,110350.0,0.38157357]
[1756791456585,0.18222508,110360.0,110350.0,0.22985357]
[1756791456807,0.18222508,110360.0,110350.0,0.38157357]
[1756791461980,0.18222508,110360.0,110350.0,0.3725115]
[1756791465606,0.18436508,110360.0,110350.0,0.19127]
[1756791465797,0.18436508,110360.0,110350.0,0.3725115]
[1756791466317,0.18222508,110360.0,110350.0,0.3725115]
[1756791466532,0.18222508,110360.0,110350.0,0.19127]
[1756791466736,0.18222508,110360.0,110350.0,0.3725115]
[1756791471271,0.18222508,110360.0,110350.0,0.19127]
[1756791471744,0.18436508,110360.0,110350.0,0.19127]
[1756791472704,0.18436508,110360.0,110350.0,0.18806]
[1756791473111,0.18436508,110360.0,110350.0,0.19101]
[1756791474201,0.18436508,110360.0,110350.0,0.01205]
[1756791474415,0.20393296,110360.0,110350.0,0.007]
[1756791474630,0.20690296,110360.0,110350.0,0.007]
[1756791475271,0.54690296,110360.0,110350.0,0.007]
[1756791478671,0.63881895,110360.0,110350.0,0.007]
[1756791486995,0.66542358,110360.0,110350.0,0.007]
[1756791487216,0.68990273,110360.0,110350.0,0.007]
[1756791487868,0.73146178,110360.0,110350.0,0.007]
[1756791488495,0.70698263,110360.0,110350.0,0.007]
[1756791488698,5.73146178,110360.0,110350.0,0.007]
[1756791491984,0.832058,110360.0,110350.0,0.007]
[1756791492988,0.85653715,110360.0,110350.0,0.007]
[1756791496241,0.86290024,110360.0,110350.0,0.007]
[1756791496846,0.85653715,110360.0,110350.0,0.007]
[1756791497268,0.86289942,110360.0,110350.0,0.007]
[1756791499136,0.87986954,110360.0,110350.0,0.007]
[1756791502575,0.97615417,110360.0,110350.0,0.007]
[1756791502778,6.10067547,110360.0,110350.0,0.007]
[1756791502984,6.47044044,110360.0,110350.0,0.007]
[1756791503379,6.46979574,110360.0,110350.0,0.007]
[1756791503586,6.49704174,110360.0,110350.0,0.007]
[1756791503808,6.46443643,110360.0,110350.0,0.004]
[1756791504749,0.18127286,110340.0,110320.0,0.030379]
[1756791504954,0.33295435,110330.0,110320.0,0.02737728]
[1756791505370,0.33295435,110330.0,110320.0,0.02952728]
[1756791505579,0.33295435,110330.0,110320.0,0.03265728]
[1756791506018,0.33295435,110330.0,110320.0,0.03565728]
[1756791506233,0.353175,110330.0,110320.0,0.03665728]
[1756791506446,0.353175,110330.0,110320.0,0.03965728]
[1756791506660,0.353175,110330.0,110320.0,0.03565728]
[1756791508470,0.354175,110330.0,110320.0,0.04065728]
[1756791509308,0.71583374,110330.0,110320.0,0.00812828]
[1756791509530,0.71583374,110330.0,110320.0,0.01027828]
[1756791509531,0.56415374,110330.0,110320.0,0.01027828]
[1756791509766,0.71583374,110330.0,110320.0,0.01027828]
[1756791509981,0.71583374,110330.0,110320.0,0.00812828]
[1756791511552,0.38077939,110330.0,110320.0,0.01340828]
[1756791511757,0.53245939,110330.0,110320.0,0.19469907]
[1756791512193,0.354175,110330.0,110320.0,0.19469907]
[1756791512845,0.354175,110330.0,110320.0,0.01340828]
[1756791513257,0.354175,110330.0,110320.0,0.19469907]
[1756791522474,0.02122065,110330.0,110320.0,0.19469907]
[1756791523645,0.202495,110330.0,110320.0,0.19469907]
[1756791529134,0.202495,110330.0,110320.0,0.01340828]
[1756791529463,0.22204438,110330.0,110320.0,0.01340828]
[1756791530318,0.22204438,110330.0,110320.0,0.19469907]
[1756791530525,0.22204438,110330.0,110320.0,0.01340828]
[1756791531693,0.22204438,110330.0,110320.0,0.19469907]
[1756791531902,0.04077003,110330.0,110320.0,0.19469907]
[1756791532114,0.22204438,110330.0,110320.0,0.19469907]
[1756791532323,0.22204438,110330.0,110320.0,0.34633907]
[1756791533208,0.22204438,110330.0,110320.0,0.16504828]
[1756791533416,0.22708438,110330.0,110320.0,0.15976828]
[1756791533606,0.22708438,110330.0,110320.0,0.00812828]
[1756791537387,0.22708438,110330.0,110320.0,0.18941907]
[1756791537807,0.04077003,110330.0,110320.0,0.19455907]
[1756791538225,0.02122065,110330.0,110320.0,0.22180707]
[1756791541547,0.356175,110330.0,110320.0,0.21666707]
[1756791541803,0.22710044,110330.0,110320.0,0.00812828]
[1756791542237,0.56710044,110330.0,110320.0,0.00812828]
[1756791543945,0.56410044,110330.0,110320.0,0.00812828]
[1756791544197,0.38078609,110330.0,110320.0,0.19455907]
[1756791544857,0.02122065,110330.0,110320.0,0.19455907]
[1756791545042,0.04078631,110330.0,110320.0,0.34615907]
[1756791546750,0.02122065,110330.0,110320.0,0.34615907]
[1756791547623,0.02122065,110330.0,110320.0,0.37340707]
[1756791548760,0.02317065,110330.0,110320.0,0.36826707]
[1756791548970,0.204445,110330.0,110320.0,0.18941907]
[1756791549229,0.204445,110330.0,110320.0,0.34603907]
[1756791549439,0.204445,110330.0,110320.0,0.19443907]
[1756791549664,0.02122065,110330.0,110320.0,0.19443907]
[1756791550302,0.02317065,110330.0,110320.0,0.19443907]
[1756791550505,0.204445,110330.0,110320.0,0.19443907]
[1756791550724,0.204445,110330.0,110320.0,0.34603907]
[1756791551360,0.02317065,110330.0,110320.0,0.34603907]
[1756791551564,0.02122065,110330.0,110320.0,0.34603907]
[1756791559712,0.02122065,110330.0,110320.0,0.37328707]
[1756791562936,0.001,110330.0,110320.0,0.46520306]
[1756791565304,0.001,110330.0,110320.0,0.77064516]
[1756791566590,0.001,110330.0,110320.0,1.05514844]
[1756791566993,0.001,110330.0,110320.0,0.77064516]
[1756791567199,0.001,110330.0,110320.0,1.05514844]
[1756791567434,0.001,110330.0,110320.0,0.77064516]
[1756791568321,0.001,110330.0,110320.0,1.05514844]
[1756791568526,0.001,110330.0,110320.0,1.10514844]
[1756791568728,1e-08,110330.0,110320.0,1.10514844]
[1756791568942,1e-08,110330.0,110320.0,1.15514844]
[1756791569392,1e-08,110330.0,110320.0,1.17347654]
[1756791569834,1e-08,110330.0,110320.0,1.57047654]
[1756791570670,0.3432,110380.0,110370.0,0.18120866]
[1756791570891,0.00515,110380.0,110370.0,0.33276866]
[1756791572004,0.18634224,110380.0,110370.0,0.33276866]
[1756791572623,0.00515,110380.0,110370.0,0.33376866]
[1756791574535,0.02349083,110380.0,110370.0,0.33376866]
[1756791574770,0.00515,110380.0,110370.0,0.33376866]
[1756791576141,0.00195,110380.0,110370.0,0.33376866]
[1756791576354,0.0049,110380.0,110370.0,0.33376866]
[1756791576766,0.00195,110380.0,110370.0,0.33376866]
[1756791577147,0.18314224,110380.0,110370.0,0.33376866]
[1756791577376,0.18609224,110380.0,110370.0,0.33376866]
[1756791577865,0.6214349,110390.0,110370.0,0.33376866]
[1756791578071,0.18119224,110380.0,110370.0,0.33674866]
[1756791578276,0.18119224,110380.0,110370.0,0.18220866]
[1756791578525,0.19978671,110380.0,110370.0,0.33372866]
[1756791578944,0.19978671,110380.0,110370.0,0.33272866]
[1756791579149,0.19978671,110380.0,110370.0,0.33372866]
[1756791579995,0.19978671,110380.0,110370.0,0.33670866]
[1756791580631,0.19978671,110380.0,110370.0,0.33570866]
[1756791580835,0.19978671,110380.0,110370.0,0.33770866]
[1756791589136,0.80273441,110380.0,110370.0,0.002]
[1756791589347,0.82997641,110380.0,110370.0,0.002]
[1756791589977,0.18122508,110360.0,110350.0,0.33574093]
[1756791590192,0.18122508,110360.0,110350.0,0.3378915]
[1756791590615,0.18122508,110360.0,110350.0,0.1863715]
[1756791590822,0.18122508,110360.0,110350.0,0.15665]
[1756791591042,0.18122508,110360.0,110350.0,0.3378915]
[1756791592722,0.18122508,110360.0,110350.0,0.3398915]
[1756791596095,0.18122508,110360.0,110350.0,0.1883715]
[1756791596307,0.18122508,110360.0,110350.0,0.15348]
[1756791597181,0.18122508,110360.0,110350.0,0.15646]
[1756791597469,0.20077342,110360.0,110350.0,0.15646]
[1756791598042,0.20077342,110360.0,110350.0,0.002]
[1756791598271,0.20077342,110360.0,110350.0,0.15348]
[1756791598456,0.20077342,110360.0,110350.0,0.15646]
[1756791598697,0.20077342,110360.0,110350.0,0.3377015]
[1756791598901,0.20077342,110360.0,110350.0,0.3398515]
[1756791599389,0.18122508,110360.0,110350.0,0.3398515]
[1756791599599,0.18122508,110360.0,110350.0,0.15861]
[1756791599811,0.18122508,110360.0,110350.0,0.3398515]
[1756791600399,0.18122508,110360.0,110350.0,0.15861]
[1756791601452,0.18122508,110360.0,110350.0,0.3398515]
[1756791603670,0.18122508,110360.0,110350.0,0.15861]
[1756791605219,0.18122508,110360.0,110350.0,0.3398515]
[1756791606331,0.18122508,110360.0,110350.0,0.15861]
[1756791606541,0.18122508,110360.0,110350.0,0.3398515]
[1756791606746,0.18122508,110360.0,110350.0,0.15861]
[1756791608071,0.18122508,110360.0,110350.0,0.3398515]
[1756791609383,0.18122508,110360.0,110350.0,0.15861]
[1756791609916,0.18122508,110360.0,110350.0,0.3398515]
[1756791610310,0.18122508,110360.0,110350.0,0.15861]
[1756791610512,0.18122508,110360.0,110350.0,0.3398515]
[1756791613174,0.22276258,110370.0,110350.0,0.3398515]
[1756791613386,0.5823049,110370.0,110360.0,0.00298]
[1756791613598,0.5823049,110370.0,110360.0,0.00512]
[1756791614056,0.35954232,110370.0,110360.0,0.18634508]
[1756791614274,0.19731647,110380.0,110370.0,0.18120866]
[1756791614482,0.06538274,110380.0,110370.0,0.33382866]
[1756791614686,0.03814074,110380.0,110370.0,0.33680866]
[1756791614892,0.35859447,110380.0,110370.0,0.33680866]
[1756791615095,0.35859447,110380.0,110370.0,0.33580866]
[1756791615324,0.01859447,110380.0,110370.0,0.33580866]
[1756791615756,0.78195615,110390.0,110380.0,0.18119224]
[1756791615959,1.14150516,110390.0,110380.0,0.18631224]
[1756791616631,1.15811211,110390.0,110380.0,0.18631224]
[1756791617054,0.71805709,110390.0,110380.0,0.18631224]
[1756791617264,0.71905709,110390.0,110380.0,0.18631224]
[1756791621845,0.03729751,110390.0,110380.0,0.18631224]
[1756791622073,0.0177485,110390.0,110380.0,0.18631224]
[1756791623341,0.0177485,110390.0,110380.0,0.27822823]
[1756791624294,0.0177485,110390.0,110380.0,0.28122823]
[1756791624510,0.0167485,110390.0,110380.0,0.28122823]
[1756791624938,0.0167485,110390.0,110380.0,0.28422823]
[1756791626570,0.0167485,110390.0,110380.0,0.43566823]
[1756791628150,0.0167485,110390.0,110380.0,0.28422823]
[1756791628386,0.0167485,110390.0,110380.0,0.43566823]
[1756791631800,0.0167485,110390.0,110380.0,0.28422823]
[1756791632001,0.0167485,110390.0,110380.0,0.43566823]
[1756791643987,0.19792433,110390.0,110380.0,0.28422823]
[1756791644246,0.0167485,110390.0,110380.0,0.28422823]
[1756791644445,0.0167485,110390.0,110380.0,0.43562823]
[1756791646055,0.19792433,110390.0,110380.0,0.006]
[1756791646257,0.55746915,110390.0,110380.0,0.006]
[1756791646947,0.55746915,110390.0,110380.0,0.003]
[1756791647189,0.55746915,110390.0,110370.0,0.405467]
[1756791647190,0.18119224,110380.0,110370.0,0.405467]
[1756791647428,0.18119224,110380.0,110370.0,0.407487]
[1756791648527,0.18119224,110380.0,110370.0,0.410487]
[1756791648742,0.18119224,110380.0,110370.0,0.189407]
[1756791648975,0.18119224,110380.0,110370.0,0.340807]
[1756791650252,0.18119224,110380.0,110370.0,0.343807]
[1756791652259,0.18119224,110380.0,110370.0,0.192407]
[1756791652562,0.18119224,110380.0,110370.0,0.343807]
[1756791652975,0.68932433,110390.0,110370.0,0.343807]
[1756791653179,0.70886766,110390.0,110370.0,0.340627]
[1756791653498,0.70886766,110390.0,110380.0,0.00318]
[1756791654345,0.55746766,110390.0,110380.0,0.00318]
[1756791655091,0.55746766,110390.0,110380.0,0.00418]
[1756791655295,0.55746766,110390.0,110380.0,0.15558]
[1756791655785,0.55746766,110390.0,110380.0,0.1576]
[1756791656587,0.55746766,110390.0,110380.0,0.1596]
[1756791656793,0.55746766,110390.0,110380.0,0.0082]
[1756791657697,0.55746766,110390.0,110380.0,0.18939224]
[1756791660045,0.55746766,110390.0,110380.0,0.0082]
[1756791660463,0.55746766,110390.0,110380.0,0.003]
[1756791661925,0.55746766,110390.0,110380.0,0.00618]
[1756791665893,0.55746766,110390.0,110380.0,0.003]
[1756791666313,0.55746766,110390.0,110380.0,0.00617]
[1756791673732,0.55746766,110390.0,110380.0,0.00826]
[1756791683086,0.01954333,110390.0,110380.0,0.00826]
[1756791683298,0.20071916,110390.0,110380.0,0.00826]
[1756791683716,0.21551781,110390.0,110380.0,0.00826]
[1756791689677,0.21551781,110390.0,110380.0,0.00617]
[1756791690221,0.21551781,110390.0,110380.0,0.003]
[1756791690463,0.21551781,110390.0,110380.0,0.00617]
[1756791697402,0.6474338,110390.0,110380.0,0.003]
[1756791697615,0.79151498,110390.0,110380.0,0.003]
[1756791697826,5.83539456,110390.0,110380.0,0.003]
[1756791698044,5.88425382,110390.0,110380.0,0.003]
[1756791698180,5.83539456,110390.0,110380.0,0.003]
[1756791698413,0.18122508,110360.0,110350.0,0.22803631]
[1756791698608,0.18122508,110360.0,110350.0,0.07865631]
[1756791699415,0.18122508,110360.0,110350.0,0.00511]
[1756791700589,0.18122508,110360.0,110350.0,0.00811]
[1756791700792,0.18122508,110360.0,110350.0,0.01111]
[1756791701455,0.18122508,110360.0,110350.0,0.00811]
[1756791701658,0.18122508,110360.0,110350.0,0.01111]
[1756791703326,0.18122508,110360.0,110350.0,0.00811]
[1756791703682,0.18122508,110360.0,110350.0,0.00711]
[1756791703860,0.18122508,110360.0,110350.0,0.00811]
[1756791704076,0.18122508,110360.0,110350.0,0.00611]
[1756791704528,0.18122508,110360.0,110350.0,0.00811]
[1756791707702,0.52122508,110360.0,110350.0,0.003]
[1756791707922,0.54074337,110360.0,110350.0,0.003]
[1756791708164,0.63265936,110360.0,110350.0,0.003]
[1756791708635,5.71095811,110360.0,110350.0,0.003]
[1756791708861,5.74236359,110360.0,110350.0,0.003]
[1756791709082,5.83427958,110360.0,110350.0,0.003]
[1756791709716,5.83427958,110360.0,110310.0,0.26744885]
[1756791709717,0.18129079,110320.0,110310.0,0.25838349]
[1756791709955,0.52128912,110330.0,110320.0,0.18129079]
[1756791710167,0.34174942,110340.0,110320.0,0.18640079]
[1756791710381,0.18127435,110330.0,110320.0,0.18327079]
[1756791711037,0.18127435,110330.0,110320.0,0.18654234]
[1756791711703,0.52128653,110340.0,110330.0,0.18127435]
[1756791711913,0.67268653,110340.0,110330.0,0.18638435]
[1756791712132,0.4914,110340.0,110330.0,0.18638435]
[1756791712562,0.67265793,110340.0,110330.0,0.18638435]
[1756791712963,0.67265793,110340.0,110330.0,0.00511]
[1756791713177,0.18127435,110330.0,110320.0,0.00627155]
[1756791713596,0.18127435,110330.0,110320.0,0.00014155]
[1756791714251,0.18127435,110330.0,110320.0,0.00314155]
[1756791714664,0.18127435,110330.0,110320.0,0.00614155]
[1756791716635,0.18127435,110330.0,110320.0,0.00927155]
[1756791718390,0.18127435,110330.0,110320.0,0.00614155]
[1756791719509,0.18127435,110330.0,110320.0,0.00927155]
[1756791719918,0.18127435,110330.0,110320.0,0.00627155]
[1756791720114,0.18127435,110330.0,110320.0,0.00427155]
[1756791720377,0.18127435,110330.0,110320.0,0.18556234]
[1756791720579,0.18127435,110330.0,110320.0,0.00327155]
[1756791720951,0.18127435,110330.0,110320.0,0.00427155]
[1756791722565,0.18127435,110330.0,110320.0,0.18556234]
[1756791723387,0.18127435,110330.0,110320.0,0.18754234]
[1756791724200,0.18127435,110330.0,110320.0,0.00625155]
[1756791724401,0.18127435,110330.0,110320.0,0.00427155]
[1756791724824,0.18127435,110330.0,110320.0,0.18556234]
[1756791727335,0.18127435,110330.0,110320.0,0.18754234]
[1756791728393,0.18127435,110330.0,110320.0,0.00625155]
[1756791729276,0.18127435,110330.0,110320.0,0.18754234]
[1756791729694,0.18127435,110330.0,110320.0,0.00625155]
[1756791729976,0.18127435,110330.0,110320.0,0.18754234]
[1756791731537,0.18127435,110330.0,110320.0,0.00625155]
[1756791731954,0.18127435,110330.0,110320.0,0.18754234]
[1756791732169,0.20076743,110330.0,110320.0,0.18754234]
[1756791736295,0.20076743,110330.0,110320.0,0.00625155]
[1756791737176,0.20076743,110330.0,110320.0,0.18754234]
[1756791737360,0.20713093,110330.0,110320.0,0.18754234]
[1756791738157,0.23143933,110330.0,110320.0,0.18754234]
[1756791738393,0.24841707,110330.0,110320.0,0.18754234]
[1756791742490,0.24841707,110330.0,110320.0,0.00625155]
[1756791742695,0.24841707,110330.0,110320.0,0.18754234]
[1756791743534,0.24841707,110330.0,110320.0,0.00625155]
[1756791743737,0.24841707,110330.0,110320.0,0.18754234]
[1756791744420,0.23143933,110330.0,110320.0,0.18754234]
[1756791744638,0.22507583,110330.0,110320.0,0.18754234]
[1756791744840,0.23144372,110330.0,110320.0,0.18754234]
[1756791745664,0.23144372,110330.0,110320.0,0.00625155]
[1756791745872,0.23144372,110330.0,110320.0,0.18754234]
[1756791746078,0.24842422,110330.0,110320.0,0.18754234]
[1756791747320,0.24842422,110330.0,110320.0,0.00625155]
[1756791747525,0.23144372,110330.0,110320.0,0.00625155]
[1756791747931,0.27296918,110330.0,110320.0,0.00625155]
[1756791751446,0.26660129,110330.0,110320.0,0.00625155]
[1756791752262,0.22507583,110330.0,110320.0,0.18754234]
[1756791752472,0.35216743,110330.0,110320.0,0.18754234]
[1756791752890,0.35216743,110330.0,110320.0,0.00625155]
[1756791755492,0.01949308,110330.0,110320.0,0.18754234]
[1756791755693,0.01949308,110330.0,110320.0,0.34172847]
[1756791755901,0.01949308,110330.0,110320.0,0.45862433]
[1756791756138,0.43195715,110350.0,110340.0,0.18125793]
[1756791756139,0.60818555,110350.0,110340.0,0.18125793]
[1756791756339,0.20216122,110350.0,110340.0,0.18644793]
[1756791756523,0.38340272,110350.0,110340.0,0.18644793]
[1756791757278,0.19579318,110350.0,110340.0,0.18644793]
[1756791757484,0.17448478,110350.0,110340.0,0.18644793]
[1756791757693,0.02256478,110350.0,110340.0,0.18644793]
[1756791757895,0.35572628,110350.0,110340.0,0.18644793]
[1756791758464,0.35672628,110350.0,110340.0,0.18644793]
[1756791758842,0.35672628,110350.0,110340.0,0.00519]
[1756791759046,0.35572628,110350.0,110340.0,0.00519]
[1756791759297,0.35272628,110350.0,110340.0,0.18644793]
[1756791759497,0.3331615,110350.0,110340.0,0.18844793]
[1756791759698,0.20078549,110350.0,110340.0,0.18944793]
[1756791759904,0.35266549,110350.0,110340.0,0.18944793]
[1756791760448,0.3331215,110350.0,110340.0,0.18944793]
[1756791762355,0.6731215,110350.0,110340.0,0.18944793]
[1756791762881,0.34,110350.0,110340.0,0.18944793]
[1756791763084,0.49184,110350.0,110340.0,0.18944793]
[1756791763586,0.34,110350.0,110340.0,0.18944793]
[1756791763935,0.34,110350.0,110340.0,0.21669093]
[1756791764343,0.59092866,110370.0,110360.0,0.18122508]
[1756791764544,0.69257372,110370.0,110360.0,0.18641508]
[1756791764753,0.69257372,110370.0,110360.0,0.00519]
[1756791765462,0.69257372,110370.0,110360.0,0.00533155]
[1756791766492,0.69357372,110370.0,110360.0,0.00533155]
[1756791767257,0.69257372,110370.0,110360.0,0.00533155]
[1756791767911,0.69357372,110370.0,110360.0,0.00533155]
[1756791768788,0.69357372,110370.0,110360.0,0.00633155]
[1756791769216,0.69257372,110370.0,110360.0,0.00633155]
[1756791780672,0.69256745,110370.0,110360.0,0.00633155]
[1756791787466,0.70954194,110370.0,110360.0,0.00633155]
[1756791787938,0.70954194,110370.0,110360.0,0.00114155]
[1756791788176,0.80582657,110370.0,110360.0,0.00114155]
[1756791788390,0.90410898,110370.0,110360.0,0.00114155]
[1756791789020,0.93699371,110370.0,110360.0,0.00114155]
[1756791789654,0.93699268,110370.0,110360.0,0.00114155]
[1756791790404,0.92850644,110370.0,110360.0,0.00114155]
[1756791796326,0.96107928,110370.0,110360.0,0.00114155]
[1756791796544,0.96107659,110370.0,110360.0,0.00114155]
[1756791800318,0.96107659,110370.0,110360.0,0.00416155]
[1756791800939,0.80923659,110370.0,110360.0,0.00619155]
[1756791801165,0.90173912,110370.0,110360.0,0.00619155]
[1756791802642,0.65814313,110370.0,110360.0,0.00619155]
[1756791802826,0.80365867,110370.0,110360.0,0.00619155]
[1756791807092,0.78668594,110370.0,110360.0,0.00619155]
[1756791807274,0.81001899,110370.0,110360.0,0.00619155]
[1756791808294,0.80365534,110370.0,110360.0,0.00619155]
[1756791810506,0.65177534,110370.0,110360.0,0.18741663]
[1756791810717,0.77913685,110370.0,110360.0,0.18741663]
[1756791810922,0.76216745,110370.0,110360.0,0.18741663]
[1756791812182,0.76216745,110370.0,110360.0,0.00619155]
[1756791812595,0.76216745,110370.0,110360.0,0.18741663]
[1756791812934,0.76216745,110370.0,110360.0,0.00619155]
[1756791815812,0.76216745,110370.0,110360.0,0.18741663]
[1756791816519,0.76216745,110370.0,110360.0,0.00619155]
[1756791816727,0.76216745,110370.0,110360.0,0.18741663]
[1756791817330,0.76216745,110370.0,110360.0,0.00619155]
[1756791817746,0.76216745,110370.0,110360.0,0.18741663]
[1756791818685,0.76216745,110370.0,110360.0,0.00619155]
[1756791820835,0.76216745,110370.0,110360.0,0.00114155]
[1756791821050,0.76216745,110370.0,110360.0,0.00408155]
[1756791825328,0.78656594,110370.0,110360.0,0.00408155]
[1756791827667,0.78656594,110370.0,110360.0,0.00114155]
[1756791827877,0.87848193,110370.0,110360.0,0.00114155]
[1756791828094,0.90572493,110370.0,110360.0,0.00114155]
[1756791831310,0.92270575,110370.0,110360.0,0.00114155]
[1756791833551,0.92907392,110370.0,110360.0,0.00114155]
[1756791835328,0.92907413,110370.0,110360.0,0.00114155]
[1756791836443,0.56467564,110370.0,110360.0,0.00114155]
[1756791838447,0.90467564,110370.0,110360.0,0.00114155]
[1756791838860,0.90467355,110370.0,110360.0,0.00114155]
[1756791841474,0.89830616,110370.0,110360.0,0.00114155]
[1756791841669,0.90467303,110370.0,110360.0,0.00114155]
[1756791841805,0.90467303,110370.0,110360.0,0.00408155]
[1756791842399,0.90467303,110370.0,110360.0,0.00618155]
[1756791842819,0.90467303,110370.0,110360.0,0.00408155]
[1756791843865,0.90467303,110370.0,110360.0,0.00114155]
[1756791846514,0.92907152,110370.0,110360.0,0.00114155]
[1756791847679,0.1812415,110350.0,110340.0,0.027242]
[1756791847898,0.18127435,110330.0,110320.0,0.00316]
[1756791848105,0.35235314,110330.0,110320.0,0.00316]
[1756791848315,0.35235314,110330.0,110320.0,0.00525]
[1756791848516,0.69235314,110330.0,110320.0,0.00525]
[1756791848940,0.74621077,110330.0,110320.0,0.00316]
[1756791849156,0.78678523,110330.0,110320.0,0.00316]
[1756791849390,0.78683233,110330.0,110320.0,0.00316]
[1756791850170,0.87874832,110330.0,110320.0,0.00316]
[1756791850347,0.52129079,110320.0,110310.0,0.00356]
[1756791850548,0.69240958,110320.0,110310.0,0.00356]
[1756791850818,0.69240958,110320.0,110310.0,0.00565]
[1756791851173,0.67289079,110320.0,110310.0,0.00565]
[1756791851844,0.67285079,110320.0,110310.0,0.00565]
[1756791853255,0.67293079,110320.0,110310.0,0.00565]
[1756791853623,0.67293079,110320.0,110310.0,0.00665]
[1756791854717,0.70485239,110320.0,110310.0,0.00665]
[1756791859297,0.70481239,110320.0,110310.0,0.00665]
[1756791861614,0.70481239,110320.0,110310.0,0.00456]
[1756791861838,0.70481239,110320.0,110310.0,0.0014]
[1756791862260,0.89305301,110320.0,110310.0,0.0014]
[1756791862467,0.93977828,110320.0,110310.0,0.0014]
[1756791863448,0.95664042,110320.0,110310.0,0.0014]
[1756791863659,0.95664042,110320.0,110310.0,0.0004]
[1756791864915,0.95764042,110320.0,110310.0,0.0004]
[1756791865089,0.95664042,110320.0,110310.0,0.0004]
[1756791865655,0.95764042,110320.0,110310.0,0.0004]
[1756791866069,0.95764042,110320.0,110310.0,0.00356]
[1756791867621,0.95764042,110320.0,110310.0,0.0004]
[1756791867839,1.35702473,110320.0,110310.0,0.0004]
[1756791868420,1.35698473,110320.0,110310.0,0.00565]
[1756791868627,1.23850411,110320.0,110310.0,0.00565]
[1756791869032,1.08686411,110320.0,110310.0,0.00565]
[1756791869227,1.23846411,110320.0,110310.0,0.00565]
[1756791869471,1.23747185,110320.0,110310.0,0.00565]
[1756791869857,1.23847185,110320.0,110310.0,0.00565]
[1756791871030,1.23747185,110320.0,110310.0,0.00565]
[1756791871240,1.23747185,110320.0,110310.0,0.00665]
[1756791872425,1.14045385,110320.0,110310.0,0.18795722]
[1756791873043,1.14045385,110320.0,110310.0,0.00665]
[1756791873375,1.14045385,110320.0,110310.0,0.18795722]
[1756791876897,0.46760306,110320.0,110310.0,0.18795722]
[1756791877143,0.60237318,110320.0,110310.0,0.18795722]
[1756791877367,0.60237318,110320.0,110310.0,0.21520922]
[1756791879618,0.20298887,110320.0,110310.0,0.21520922]
[1756791882369,0.38427966,110320.0,110310.0,0.031812]
[1756791882602,0.38427966,110320.0,110310.0,0.0014]
[1756791885313,0.05134887,110320.0,110310.0,0.18787722]
[1756791885541,0.20302887,110320.0,110310.0,0.18787722]
[1756791885759,0.38431966,110320.0,110310.0,0.18787722]
[1756791886209,0.38431966,110320.0,110310.0,0.00657]
[1756791886944,0.38431966,110320.0,110310.0,0.0014]
[1756791888297,0.38431966,110320.0,110310.0,0.18787722]
[1756791889615,0.38431966,110320.0,110310.0,0.00657]
[1756791891009,0.38431966,110320.0,110310.0,0.18787722]
[1756791891432,0.38431966,110320.0,110310.0,0.00657]
[1756791892920,0.38431966,110320.0,110310.0,0.18787722]
[1756791893681,0.38431966,110320.0,110310.0,0.00657]
[1756791894107,0.38431966,110320.0,110310.0,0.00452]
[1756791894940,0.38431966,110320.0,110310.0,0.18582722]
[1756791895804,0.38431966,110320.0,110310.0,0.18787722]
[1756791896196,0.38459966,110320.0,110310.0,0.18787722]
[1756791896646,0.38459966,110320.0,110310.0,0.00657]
[1756791897367,0.38459966,110320.0,110310.0,0.18787722]
[1756791900336,0.23263966,110320.0,110310.0,0.18787722]
[1756791900546,0.38451966,110320.0,110310.0,0.18787722]
[1756791901389,0.23263966,110320.0,110310.0,0.18787722]
[1756791901607,0.38447966,110320.0,110310.0,0.18787722]
[1756791903604,0.38447966,110320.0,110310.0,0.00657]
[1756791903828,0.38447966,110320.0,110310.0,0.00452]
[1756791905133,0.38447966,110320.0,110310.0,0.18787722]
[1756791906935,0.38463966,110320.0,110310.0,0.18787722]
[1756791907671,0.23263966,110320.0,110310.0,0.18787722]
[1756791907876,0.05134887,110320.0,110310.0,0.18787722]
[1756791908077,0.20330887,110320.0,110310.0,0.18787722]
[1756791908282,0.38459966,110320.0,110310.0,0.18787722]
[1756791908883,0.20330887,110320.0,110310.0,0.18787722]
[1756791909788,0.38459966,110320.0,110310.0,0.18787722]
[1756791910433,0.38459966,110320.0,110310.0,0.00657]
[1756791911257,0.38459966,110320.0,110310.0,0.00452]
[1756791911815,0.38459966,110320.0,110310.0,0.0014]
[1756791913689,0.38459966,110320.0,110310.0,0.00439]
[1756791914651,0.38459966,110320.0,110310.0,0.18569722]
[1756791915584,0.38459966,110320.0,110310.0,0.18766722]
[1756791917119,0.23263966,110320.0,110310.0,0.18766722]
[1756791917377,0.38455966,110320.0,110310.0,0.18766722]
[1756791918626,0.20326887,110320.0,110310.0,0.18766722]
[1756791919472,0.38455966,110320.0,110310.0,0.18766722]
[1756791921789,0.24614514,110330.0,110310.0,0.18766722]
[1756791921790,0.22171312,110330.0,110310.0,0.18766722]
[1756791922001,0.33325079,110320.0,110310.0,0.18766722]
[1756791922215,0.33325079,110320.0,110310.0,0.18467722]
[1756791922432,0.35990979,110320.0,110310.0,0.18694356]
[1756791922701,0.35990979,110320.0,110310.0,0.18993356]
[1756791922921,0.026659,110320.0,110310.0,0.18766722]
[1756791923144,0.178619,110320.0,110310.0,0.18766722]
[1756791923366,0.15196,110320.0,110310.0,0.18766722]
[1756791923588,0.15196,110320.0,110310.0,0.18666722]
[1756791924035,0.33325079,110320.0,110310.0,0.18666722]
[1756791925082,0.33325079,110320.0,110310.0,0.18766722]
[1756791927013,0.31883118,110320.0,110310.0,0.18966722]
[1756791930578,0.35966013,110320.0,110310.0,0.18966722]
[1756791931329,0.35966013,110320.0,110310.0,0.34150722]
[1756791932217,0.02644934,110320.0,110310.0,0.34150722]
[1756791932428,0.02644934,110320.0,110310.0,0.43342321]
[1756791932635,4.71e-05,110330.0,110320.0,0.18129079]
[1756791932874,4.71e-05,110330.0,110320.0,0.18654692]
[1756791933078,4.71e-05,110330.0,110320.0,0.18851692]
[1756791933212,4.71e-05,110330.0,110320.0,0.18625079]
[1756791933828,0.02707701,110330.0,110320.0,0.18725079]
[1756791940427,0.02486074,110330.0,110320.0,0.18725079]